bitfinex/quotes_SOLUSD_20220129
["timestamp","ask_amount","ask_price","bid_price","bid_amount"]
[1643426618582,23.9079,91.869,91.812,0.25]
[1643426618783,23.9079,91.869,91.821,6.0]
[1643426619183,0.25,91.868,91.822,0.25]
[1643426619383,0.25,91.868,91.812,0.25]
[1643426621290,23.9079,91.869,91.812,0.25]
[1643426621490,23.9079,91.869,91.821,6.0]
[1643426621787,23.9079,91.869,91.822,0.25]
[1643426626995,24.8179,91.889,91.822,0.25]
[1643426627494,0.25,91.888,91.822,0.25]
[1643426627898,22.9309,91.888,91.822,25.2284]
[1643426628098,45.90229205,91.887,91.832,6.0]
[1643426628295,45.90229205,91.887,91.833,0.25]
[1643426630800,45.90229205,91.887,91.832,6.0]
[1643426631198,0.25,91.886,91.832,6.0]
[1643426631405,0.25,91.886,91.822,24.9784]
[1643426631598,25.1616,91.886,91.822,24.9784]
[1643426632002,25.1616,91.886,91.832,6.0]
[1643426632498,24.9116,91.886,91.833,0.25]
[1643426634502,45.90229205,91.887,91.833,0.25]
[1643426639534,0.25,91.886,91.833,0.25]
[1643426640938,0.25,91.886,91.823,0.25]
[1643426642036,0.25,91.886,91.832,6.0]
[1643426642438,0.25,91.886,91.833,0.25]
[1643426643837,0.25,91.886,91.823,0.25]
[1643426646941,0.25,91.886,91.832,6.0]
[1643426647142,0.25,91.886,91.823,0.25]
[1643426647943,23.7447,91.886,91.823,0.25]
[1643426648141,23.7447,91.886,91.822,24.9784]
[1643426648344,16.34,91.88,91.803,1.52716393]
[1643426648543,1.51330036,91.879,91.794,22.8117]
[1643426648844,1.51330036,91.877,91.794,22.8117]
[1643426649046,4.46999178,91.878,91.794,22.8117]
[1643426649244,3.20669142,91.876,91.795,14.67396998]
[1643426649645,2.95669142,91.875,91.796,0.25]
[1643426649848,0.25,91.874,91.796,0.25]
[1643426650045,16.343,91.86,91.795,14.67396998]
[1643426650247,45.6582176,91.858,91.795,14.67396998]
[1643426650646,0.25,91.857,91.795,14.67396998]
[1643426651347,0.25,91.857,91.796,0.25]
[1643426652551,0.25,91.857,91.795,14.67396998]
[1643426653753,0.25,91.857,91.796,0.25]
[1643426672406,45.6582176,91.858,91.796,0.25]
[1643426672606,45.6582176,91.858,91.805,6.0]
[1643426672806,45.6582176,91.858,91.806,23.8776]
[1643426673808,0.25,91.857,91.806,23.8776]
[1643426674909,45.6582176,91.858,91.806,23.8776]
[1643426675509,23.6306,91.859,91.806,23.8776]
[1643426675706,0.25,91.858,91.806,23.8776]
[1643426676508,23.6306,91.859,91.806,23.8776]
[1643426676907,0.25,91.858,91.806,23.8776]
[1643426678112,23.824,91.869,91.806,23.8776]
[1643426681113,23.824,91.869,91.816,6.0]
[1643426681314,23.824,91.869,91.817,0.25]
[1643426681923,23.824,91.869,91.82,6.0]
[1643426682319,23.824,91.869,91.821,0.25]
[1643426682521,0.25,91.869,91.821,0.25]
[1643426683020,24.6657,91.879,91.821,0.25]
[1643426691255,24.6657,91.879,91.818,0.25]
[1643426691458,24.6657,91.879,91.817,23.3601]
[1643426691857,2.95669142,91.878,91.785,1.52716393]
[1643426692057,2.95669142,91.878,91.76,197.08]
[1643426692058,16.342,91.87,91.8,15.77]
[1643426692258,0.25,91.869,91.8,15.77]
[1643426692458,3.20669142,91.869,91.8,15.77]
[1643426692658,27.93669142,91.869,91.8,15.77]
[1643426693258,27.93669142,91.869,91.801,23.4669]
[1643426693859,27.93669142,91.869,91.8,15.77]
[1643426696264,27.93669142,91.869,91.801,23.937]
[1643426696462,27.93669142,91.869,91.801,23.687]
[1643426697266,27.93669142,91.869,91.802,0.25]
[1643426698063,24.73,91.869,91.802,109.95]
[1643426698265,1.51330036,91.884,91.811,6.0]
[1643426698468,1.51330036,91.892,91.82,15.77]
[1643426698667,1.51330036,91.893,91.82,15.77]
[1643426698869,1.51330036,91.894,91.831,2.35517169]
[1643426699066,1.51330036,91.892,91.832,22.9016]
[1643426699366,1.51330036,91.892,91.832,23.1516]
[1643426699968,16.339,91.89,91.832,23.1516]
[1643426700169,0.25,91.88,91.832,23.1516]
[1643426700873,0.25,91.88,91.832,22.9016]
[1643426701270,0.25,91.88,91.833,13.5372651]
[1643426701897,24.4176,91.885,91.833,13.5372651]
[1643426702079,24.4176,91.885,91.832,22.9016]
[1643426703080,24.4176,91.885,91.833,12.29353658]
[1643426703279,0.25,91.88,91.833,12.29353658]
[1643426703679,0.25,91.88,91.832,22.9016]
[1643426703879,0.25,91.88,91.833,0.25]
[1643426704580,16.59,91.88,91.82,15.77]
[1643426704780,16.59,91.88,91.821,16.58425193]
[1643426705180,16.59,91.88,91.822,24.6352]
[1643426705380,16.59,91.88,91.823,0.25]
[1643426707283,16.59,91.88,91.822,24.6352]
[1643426707682,15.59,91.88,91.822,24.6352]
[1643426708485,24.4176,91.885,91.822,24.6352]
[1643426708486,1.51330036,91.883,91.822,24.6352]
[1643426709085,1.51330036,91.883,91.821,16.33425193]
[1643426709283,0.25,91.88,91.821,16.33425193]
[1643426710086,0.25,91.88,91.822,23.975]
[1643426711985,2.95669142,91.879,91.8,15.77]
[1643426712185,16.343,91.87,91.797,24.0949]
[1643426712386,1.51330036,91.865,91.797,24.0949]
[1643426712587,1.51330036,91.865,91.76,15.77]
[1643426712588,1.51330036,91.854,91.761,1.52716393]
[1643426712786,0.25,91.853,91.761,25.62206393]
[1643426712986,34.86050269,91.853,91.762,14.9544201]
[1643426713186,22.9961,91.852,91.762,16.48158403]
[1643426713392,0.25,91.851,91.762,14.9544201]
[1643426713788,0.25,91.851,91.763,0.25]
[1643426713987,16.346,91.85,91.763,0.25]
[1643426714388,0.25,91.849,91.763,0.25]
[1643426714589,3.20669142,91.849,91.763,0.25]
[1643426714791,3.20669142,91.849,91.762,14.9544201]
[1643426714991,2.95669142,91.848,91.761,24.0949]
[1643426715390,0.25,91.847,91.761,24.0949]
[1643426715789,16.348,91.84,91.761,24.0949]
[1643426716189,16.348,91.84,91.762,0.25]
[1643426716190,27.65439142,91.839,91.762,0.25]
[1643426716589,2.95669142,91.838,91.762,0.25]
[1643426716792,0.25,91.837,91.762,0.25]
[1643426718011,0.25,91.838,91.771,6.0]
[1643426718211,0.25,91.838,91.772,23.8151]
[1643426718418,0.25,91.838,91.772,24.0651]
[1643426719012,0.25,91.838,91.782,6.0]
[1643426719213,33.09720233,91.853,91.783,0.25]
[1643426719418,1.51330036,91.874,91.783,23.7754]
[1643426719614,1.51330036,91.874,91.793,6.0]
[1643426719813,24.8894,91.878,91.8,15.77]
[1643426720013,24.8894,91.878,91.81,6.0]
[1643426720215,24.8894,91.878,91.811,23.5254]
[1643426720415,37.27768527,91.877,91.812,2.59197211]
[1643426720816,37.27768527,91.877,91.813,0.25]
[1643426720817,16.343,91.87,91.813,0.25]
[1643426721215,0.25,91.869,91.813,0.25]
[1643426721919,0.25,91.869,91.812,0.25]
[1643426723920,0.25,91.869,91.811,23.5254]
[1643426725922,0.25,91.869,91.812,0.25]
[1643426729929,0.25,91.869,91.811,23.5254]
[1643426730131,0.25,91.869,91.812,0.25]
[1643426733134,0.25,91.869,91.811,23.5254]
[1643426733335,0.25,91.876,91.811,23.5254]
[1643426734135,0.25,91.876,91.812,0.25]
[1643426734538,0.25,91.876,91.811,23.5254]
[1643426736344,0.25,91.876,91.812,0.25]
[1643426737246,0.25,91.876,91.811,23.5254]
[1643426737846,0.25,91.876,91.821,6.0]
[1643426738650,1.51330036,91.882,91.83,15.77]
[1643426738850,1.51330036,91.916,91.831,109.95]
[1643426739050,1.01330036,91.928,91.841,115.7]
[1643426739250,16.06585097,91.963,91.841,115.7]
[1643426739251,3.02312757,91.962,91.85,17.47217684]
[1643426739449,3.02312757,91.962,91.86,6.0]
[1643426739651,113.7,91.964,91.87,15.77]
[1643426739652,16.327,91.96,91.87,15.77]
[1643426739953,3.02312757,91.959,91.871,0.25]
[1643426740153,37.29347897,91.961,91.871,0.25]
[1643426740354,37.29347897,91.961,91.88,6.0]
[1643426740753,37.29347897,91.961,91.87,15.77]
[1643426741155,16.329,91.94,91.87,15.77]
[1643426742359,0.25,91.939,91.87,15.77]
[1643426743273,0.25,91.939,91.871,0.25]
[1643426743874,0.25,91.939,91.87,15.77]
[1643426745975,0.25,91.939,91.871,0.25]
[1643426746173,40.4703547,91.929,91.871,0.25]
[1643426746374,0.25,91.928,91.871,0.25]
[1643426746574,0.25,91.928,91.87,15.77]
[1643426747175,40.4703547,91.929,91.87,15.77]
[1643426747382,16.333,91.92,91.88,6.0]
[1643426747775,16.333,91.92,91.871,0.25]
[1643426747979,16.333,91.92,91.87,6.0]
[1643426748280,40.4703547,91.929,91.871,0.25]
[1643426750780,0.25,91.928,91.871,0.25]
[1643426750982,16.329,91.94,91.871,0.25]
[1643426751180,3.02878851,91.983,91.871,0.25]
[1643426751181,54.419,91.98,91.881,109.7]
[1643426751381,3.02878851,91.988,91.882,0.25]
[1643426751584,15.9419,92.008,91.892,109.7]
[1643426751780,15.9419,92.008,91.9,15.77]
[1643426751981,37.22439229,92.007,91.902,6.0]
[1643426752185,37.22439229,92.007,91.91,6.0]
[1643426752383,16.32,91.99,91.92,15.77]
[1643426752582,16.32,91.99,91.93,6.0]
[1643426752785,16.32,91.99,91.931,14.24550699]
[1643426753185,16.32,91.99,91.941,6.0]
[1643426753384,16.32,91.99,91.931,14.24550699]
[1643426753385,16.32,91.99,91.931,13.99550699]
[1643426753585,16.32,91.99,91.92,15.77]
[1643426754585,16.32,91.99,91.921,16.82305871]
[1643426754787,0.25,91.989,91.921,16.82305871]
[1643426755287,0.25,91.989,91.922,0.25]
[1643426757086,0.25,91.989,91.931,6.0]
[1643426757287,0.25,91.989,91.921,16.82305871]
[1643426758689,0.25,91.989,91.931,6.0]
[1643426759087,0.25,91.989,91.932,6.0]
[1643426759290,0.25,91.989,91.932,6.25]
[1643426759787,0.25,92.005,91.932,6.25]
[1643426760193,0.25,92.006,91.933,23.5697]
[1643426760390,0.25,92.006,91.94,6.0]
[1643426760588,0.25,92.006,91.943,6.0]
[1643426760788,0.25,92.006,91.944,109.95]
[1643426761191,0.25,92.006,91.954,6.0]
[1643426761590,0.25,92.006,91.955,6.25]
[1643426761790,37.22439229,92.007,91.955,6.25]
[1643426762393,37.22439229,92.007,91.945,24.9153]
[1643426762992,37.22439229,92.007,91.94,15.77]
[1643426763192,113.95,92.006,91.94,15.77]
[1643426763592,16.32,91.99,91.92,15.77]
[1643426763791,0.25,91.989,91.92,15.77]
[1643426765093,16.323,91.98,91.92,15.77]
[1643426765292,0.25,91.979,91.92,15.77]
[1643426766494,0.25,91.986,91.92,15.77]
[1643426767095,33.15017096,91.969,91.92,15.77]
[1643426767295,0.25,91.968,91.92,15.77]
[1643426767694,0.25,91.968,91.9,15.77]
[1643426767894,0.25,91.968,91.901,0.25]
[1643426768496,0.25,91.968,91.91,6.0]
[1643426768895,0.25,91.968,91.911,0.25]
[1643426771898,0.25,91.968,91.901,16.36120342]
[1643426771899,0.25,91.968,91.901,16.61120342]
[1643426773403,0.25,91.968,91.901,0.25]
[1643426779813,16.325,91.96,91.901,0.25]
[1643426780214,0.25,91.959,91.901,0.25]
[1643426781014,16.327,91.95,91.88,15.77]
[1643426781215,16.327,91.95,91.87,15.77]
[1643426781414,48.0566,91.949,91.884,6.0]
[1643426781613,48.0566,91.949,91.861,23.6551]
[1643426781814,48.0566,91.949,91.87,15.77]
[1643426782013,48.0566,91.949,91.87,28.02995762]
[1643426782215,16.331,91.93,91.87,28.02995762]
[1643426782415,45.94215885,91.929,91.87,28.02995762]
[1643426782815,45.94215885,91.929,91.871,0.25]
[1643426784019,45.69215885,91.929,91.871,0.25]
[1643426784638,45.69215885,91.929,91.88,6.0]
[1643426784938,45.69215885,91.929,91.881,0.25]
[1643426785138,45.69215885,91.929,91.871,0.25]
[1643426785339,0.25,91.928,91.871,0.25]
[1643426787149,45.69215885,91.929,91.871,0.25]
[1643426787347,16.329,91.94,91.88,6.0]
[1643426787547,23.6133,91.959,91.881,24.0084]
[1643426787749,23.6133,91.959,91.882,24.1499]
[1643426787950,0.25,91.958,91.891,6.0]
[1643426788148,0.25,91.958,91.892,6.0]
[1643426788347,40.6487589,91.958,91.894,17.00740953]
[1643426788547,40.6487589,91.958,91.904,6.0]
[1643426788951,40.6487589,91.958,91.905,0.25]
[1643426789149,40.6487589,91.958,91.9,15.77]
[1643426789350,40.6487589,91.958,91.904,6.0]
[1643426789551,40.3987589,91.958,91.91,6.0]
[1643426789753,3.02878851,92.012,91.921,109.7]
[1643426789952,65.8538574,92.024,91.921,109.7]
[1643426790153,65.8538574,92.024,91.931,6.0]
[1643426790154,3.02046886,92.023,91.931,6.0]
[1643426790352,16.32,91.99,91.921,23.8188]
[1643426790553,16.32,91.99,91.921,24.0688]
[1643426790754,34.48756962,91.989,91.921,24.0688]
[1643426791253,0.25,91.988,91.921,23.8188]
[1643426791455,16.321,91.98,91.921,23.8188]
[1643426791654,16.321,91.98,91.92,15.77]
[1643426791853,0.25,91.979,91.92,15.77]
[1643426793154,16.323,91.97,91.9,15.77]
[1643426793352,0.25,91.969,91.901,0.25]
[1643426794155,16.325,91.96,91.901,0.25]
[1643426794356,43.27603885,91.959,91.901,0.25]
[1643426796458,16.327,91.95,91.901,0.25]
[1643426796959,0.25,91.949,91.901,0.25]
[1643426797961,0.25,91.958,91.901,0.25]
[1643426800062,24.1593,91.958,91.883,16.8045383]
[1643426800469,16.327,91.95,91.883,16.8045383]
[1643426800663,16.327,91.95,91.883,0.25]
[1643426800866,0.25,91.949,91.883,0.25]
[1643426801264,0.25,91.949,91.871,0.25]
[1643426801667,16.329,91.94,91.871,0.25]
[1643426801965,0.25,91.939,91.85,22.9106]
[1643426802164,27.61699142,91.939,91.85,38.6806]
[1643426802363,24.6603,91.939,91.85,38.6806]
[1643426802763,16.333,91.92,91.85,38.6806]
[1643426802964,42.34841863,91.919,91.85,38.6806]
[1643426803190,42.59841863,91.919,91.85,38.6806]
[1643426803969,16.335,91.91,91.85,38.6806]
[1643426804370,0.25,91.909,91.85,15.77]
[1643426805470,0.25,91.918,91.85,15.77]
[1643426805770,0.25,91.918,91.851,0.25]
[1643426805970,16.337,91.9,91.851,0.25]
[1643426806372,0.25,91.899,91.851,0.25]
[1643426808374,0.25,91.899,91.842,0.25]
[1643426817301,16.337,91.9,91.842,0.25]
[1643426818904,22.6376,91.918,91.842,0.25]
[1643426819105,22.6376,91.918,91.842,23.8299]
[1643426819304,0.25,91.917,91.842,23.8299]
[1643426820304,0.25,91.917,91.842,23.5799]
[1643426821107,16.334,91.91,91.842,23.5799]
[1643426821308,0.25,91.909,91.842,23.5799]
[1643426821506,0.25,91.909,91.852,6.0]
[1643426821907,0.25,91.909,91.853,0.25]
[1643426822907,0.25,91.909,91.843,0.25]
[1643426826612,0.25,91.909,91.852,6.0]
[1643426826812,0.25,91.909,91.853,0.25]
[1643426828014,0.25,91.909,91.843,0.25]
[1643426830529,16.336,91.9,91.843,0.25]
[1643426831328,0.25,91.899,91.843,12.6373408]
[1643426833630,0.25,91.899,91.843,0.25]
[1643426838550,16.338,91.89,91.843,0.25]
[1643426838749,24.4894,91.889,91.83,6.0]
[1643426838950,24.7394,91.889,91.821,6.0]
[1643426839151,24.7394,91.889,91.822,6.0]
[1643426839348,36.11581964,91.888,91.823,22.9211]
[1643426839549,36.11581964,91.888,91.833,6.0]
[1643426839748,16.339,91.88,91.823,22.6711]
[1643426840149,0.25,91.879,91.823,22.6711]
[1643426841650,16.341,91.87,91.783,3.05235475]
[1643426841852,24.8661,91.869,91.784,24.8223]
[1643426842151,24.8661,91.869,91.784,24.5723]
[1643426842353,24.8661,91.869,91.785,0.25]
[1643426842552,24.8661,91.869,91.785,14.54546003]
[1643426842854,24.8661,91.869,91.785,17.31692993]
[1643426843052,24.8661,91.869,91.786,2.7714699]
[1643426843254,24.8661,91.869,91.787,0.25]
[1643426843655,24.8661,91.869,91.788,2.7714699]
[1643426843854,24.8661,91.869,91.789,0.25]
[1643426844057,24.8661,91.869,91.795,6.0]
[1643426844259,24.8661,91.869,91.796,23.5525]
[1643426844458,24.8661,91.869,91.796,23.8025]
[1643426847061,24.8661,91.869,91.797,109.7]
[1643426847260,24.8661,91.869,91.798,0.25]
[1643426847862,24.8661,91.869,91.797,109.7]
[1643426849260,24.8661,91.869,91.798,0.25]
[1643426852366,24.8661,91.869,91.797,0.25]
[1643426855778,24.8661,91.869,91.797,109.95]
[1643426856972,16.341,91.87,91.798,2.7714699]
[1643426857173,36.11581964,91.888,91.81,15.77]
[1643426857375,36.11581964,91.888,91.811,24.5695]
[1643426857573,36.11581964,91.888,91.821,115.7]
[1643426857772,36.11581964,91.888,91.83,15.77]
[1643426857973,36.11581964,91.888,91.831,109.7]
[1643426858173,36.11581964,91.888,91.841,109.7]
[1643426858377,24.3481,91.93,91.842,0.25]
[1643426858574,24.3481,91.93,91.842,24.2626]
[1643426858773,0.25,91.929,91.842,24.2626]
[1643426858976,16.334,91.91,91.842,24.2626]
[1643426859278,35.6968365,91.909,91.842,24.2626]
[1643426859574,35.4468365,91.909,91.842,24.2626]
[1643426860776,0.25,91.908,91.842,24.2626]
[1643426869706,22.8103,91.908,91.842,24.2626]
[1643426885427,22.8103,91.908,91.842,25.75347805]
[1643426886029,22.8103,91.908,91.842,24.2626]
[1643426887831,22.8103,91.908,91.842,25.75347805]
[1643426888533,22.8103,91.908,91.843,1.49087805]
[1643426888733,22.8103,91.908,91.844,1.49087805]
[1643426888936,22.8103,91.908,91.845,1.49087805]
[1643426889337,22.8103,91.908,91.846,0.25]
[1643426889555,22.8103,91.908,91.847,1.49087805]
[1643426889755,22.8103,91.908,91.848,1.49087805]
[1643426889956,22.8103,91.908,91.848,1.74087805]
[1643426890155,22.8103,91.908,91.848,1.49087805]
[1643426890357,22.8103,91.908,91.849,0.25]
[1643426891356,22.8103,91.908,91.848,0.25]
[1643426891557,22.3103,91.908,91.848,0.25]
[1643426891761,0.25,91.907,91.844,1.49087805]
[1643426891963,0.25,91.907,91.847,0.25]
[1643426892960,0.25,91.907,91.845,0.25]
[1643426893260,1.51014196,91.933,91.853,1.49087805]
[1643426893461,1.51014196,91.933,91.86,15.77]
[1643426893662,1.51014196,91.944,91.864,111.19087805]
[1643426893863,23.9473,91.945,91.87,6.0]
[1643426894062,23.9473,91.945,91.877,6.0]
[1643426894263,36.97843423,91.944,91.878,123.43684149]
[1643426894468,36.97843423,91.944,91.881,109.7]
[1643426894663,36.97843423,91.944,91.888,6.0]
[1643426894865,36.97843423,91.944,91.889,109.95]
[1643426895062,36.97843423,91.944,91.899,6.0]
[1643426895262,0.25,91.943,91.9,0.25]
[1643426895463,0.25,91.943,91.9,13.78]
[1643426896664,36.97843423,91.944,91.9,13.78]
[1643426896868,36.97843423,91.944,91.91,6.0]
[1643426897265,1.51014196,91.969,91.911,0.25]
[1643426897865,24.8876,91.973,91.911,0.25]
[1643426898266,42.59088993,91.972,91.911,0.25]
[1643426899067,42.59088993,91.972,91.919,6.0]
[1643426899268,42.59088993,91.972,91.92,0.25]
[1643426900473,42.59088993,91.972,91.92,6.25]
[1643426900773,23.5147,91.988,91.921,109.7]
[1643426900969,23.5147,91.988,91.92,6.25]
[1643426900970,1.51014196,92.005,91.923,109.7]
[1643426901374,1.51014196,92.005,91.933,6.0]
[1643426901573,44.03738658,92.004,91.934,109.7]
[1643426901776,23.0122,92.003,91.935,24.8531]
[1643426901974,23.0122,92.003,91.936,109.7]
[1643426902177,0.25,92.002,91.936,0.25]
[1643426904280,23.0122,92.003,91.936,0.25]
[1643426904480,1.51014196,92.017,91.945,6.0]
[1643426904781,3.02878851,92.043,91.946,23.0932]
[1643426904782,1.51014196,92.025,91.946,23.0932]
[1643426905180,33.34810508,92.03,91.957,13.48684149]
[1643426905478,33.34810508,92.03,91.958,23.0932]
[1643426905777,33.34810508,92.03,91.967,6.0]
[1643426905977,33.34810508,92.03,91.958,23.0932]
[1643426906578,33.34810508,92.03,91.95,15.77]
[1643426906778,33.34810508,92.03,91.845,408.62762579]
[1643426906779,2.95669142,92.02,91.94,15.77]
[1643426906984,16.318,92.0,91.938,0.25]
[1643426907580,33.69719158,91.999,91.931,13.71553494]
[1643426907783,0.25,91.998,91.931,13.71553494]
[1643426908206,33.69719158,91.999,91.931,13.71553494]
[1643426908380,0.25,91.998,91.931,13.71553494]
[1643426909382,0.25,91.998,91.932,0.25]
[1643426909581,0.25,91.998,91.932,23.4749]
[1643426910784,16.5379,92.014,91.932,23.4749]
[1643426910986,24.8698,92.03,91.94,15.77]
[1643426911186,1.51014196,92.034,91.942,6.0]
[1643426911393,1.51014196,92.047,91.95,6.0]
[1643426911590,1.51014196,92.042,91.96,15.77]
[1643426911787,44.02803036,92.041,91.961,3.56360673]
[1643426912087,16.311,92.04,91.961,0.25]
[1643426912387,44.02803036,92.041,91.961,0.25]
[1643426912589,24.7059,92.039,91.961,0.25]
[1643426913189,24.7059,92.039,91.961,13.3382289]
[1643426913387,24.7059,92.039,91.96,15.77]
[1643426913590,0.25,92.038,91.96,15.77]
[1643426914291,16.313,92.03,91.96,15.77]
[1643426914692,16.313,92.03,91.961,0.25]
[1643426916107,16.313,92.03,91.96,15.77]
[1643426916308,16.313,92.03,91.961,0.25]
[1643426917409,16.314,92.02,91.953,0.25]
[1643426917611,24.9826,92.019,91.953,0.25]
[1643426918609,24.9826,92.019,91.957,6.0]
[1643426918810,24.9826,92.019,91.958,0.25]
[1643426920912,0.25,92.018,91.958,0.25]
[1643426922311,0.25,92.018,91.958,24.0403]
[1643426925418,1.51014196,92.017,91.958,24.0403]
[1643426926317,1.51014196,92.018,91.958,24.0403]
[1643426927119,26.49274196,92.019,91.958,24.0403]
[1643426927330,26.49274196,92.019,91.959,109.7]
[1643426927723,26.49274196,92.019,91.96,0.25]
[1643426927923,24.9826,92.019,91.96,0.25]
[1643426928823,1.51014196,92.016,91.96,0.25]
[1643426929023,1.51014196,92.015,91.96,0.25]
[1643426929223,1.51014196,92.016,91.96,0.25]
[1643426929628,1.51014196,92.017,91.96,0.25]
[1643426929824,1.76014196,92.018,91.969,115.7]
[1643426930230,0.25,92.018,91.97,0.25]
[1643426930426,0.25,92.018,91.959,109.95]
[1643426930427,1.76014196,92.018,91.959,109.95]
[1643426930825,1.51014196,92.017,91.959,109.95]
[1643426931226,1.51014196,92.015,91.959,109.95]
[1643426931432,1.51014196,92.016,91.959,109.95]
[1643426932433,1.51014196,92.017,91.959,109.95]
[1643426932633,0.25,92.018,91.959,109.95]
[1643426932834,0.25,92.018,91.959,0.25]
[1643426933034,1.76014196,92.018,91.959,0.25]
[1643426933244,1.51014196,92.016,91.959,0.25]
[1643426933638,1.51014196,92.017,91.959,0.25]
[1643426933937,1.51014196,92.016,91.959,0.25]
[1643426934136,1.51014196,92.017,91.959,0.25]
[1643426934546,1.51014196,92.016,91.959,0.25]
[1643426935137,1.51014196,92.015,91.959,0.25]
[1643426935338,1.51014196,92.016,91.959,0.25]
[1643426936138,1.51249002,92.02,91.959,0.25]
[1643426936336,13.86530674,92.03,91.959,0.25]
[1643426937339,0.25,92.029,91.959,0.25]
[1643426940541,0.25,92.029,91.968,6.0]
[1643426940939,0.25,92.029,91.969,0.25]
[1643426942068,0.25,92.029,91.959,0.25]
[1643426942472,13.86530674,92.03,91.959,0.25]
[1643426942667,0.1,92.044,91.969,109.7]
[1643426942867,3.02878851,92.057,91.971,109.7]
[1643426943070,3.21499176,92.068,91.982,109.7]
[1643426943267,3.02542782,92.067,91.984,109.7]
[1643426943668,36.19326921,92.066,91.994,6.0]
[1643426943867,0.1,92.065,91.995,24.985]
[1643426944067,3.12542782,92.065,92.005,6.0]
[1643426944268,3.12542782,92.065,92.006,0.25]
[1643426944468,0.1,92.065,92.006,0.25]
[1643426945469,0.1,92.065,91.996,0.25]
[1643426946170,0.35,92.065,91.996,0.25]
[1643426946770,16.307,92.06,91.996,0.25]
[1643426947069,0.1,92.059,91.996,0.25]
[1643426949073,0.1,92.059,92.005,6.0]
[1643426949275,0.1,92.059,92.006,0.25]
[1643426949677,0.35,92.059,92.006,0.25]
[1643426950578,0.35,92.059,91.996,0.25]
[1643426953284,0.1,92.059,91.996,0.25]
[1643426955086,0.1,92.059,92.006,109.7]
[1643426955389,0.1,92.059,92.005,6.0]
[1643426955390,0.1,92.065,92.007,0.25]
[1643426955592,0.1,92.042,91.995,24.735]
[1643426955791,0.1,92.042,91.996,0.25]
[1643426956287,0.1,92.065,91.996,0.25]
[1643426956787,0.43956394,92.068,92.001,6.0]
[1643426956987,0.1,92.042,92.002,23.583]
[1643426957186,0.1,92.042,92.002,23.833]
[1643426957390,0.1,92.042,92.012,6.0]
[1643426957588,0.1,92.042,92.013,16.57066903]
[1643426957788,0.1,92.042,92.013,16.82066903]
[1643426957988,0.1,92.042,92.013,0.25]
[1643426958191,0.1,92.042,92.002,23.583]
[1643426958594,0.1,92.042,92.012,6.0]
[1643426958791,0.1,92.067,92.013,0.25]
[1643426958992,0.1,92.067,92.013,14.96205099]
[1643426959391,0.1,92.067,92.014,22.9049]
[1643426959598,0.18956394,92.068,92.014,22.9049]
[1643426960193,36.73093825,92.068,92.014,22.6549]